bitfinex/quotes_SOLUSD_20250728
["timestamp","ask_amount","ask_price","bid_price","bid_amount"]
[1753741150461,0.72,184.34,184.31,38.42]
[1753741150868,5.01803996,184.34,184.31,38.42]
[1753741151180,0.72,184.33,184.31,38.42]
[1753741151393,0.72,184.33,184.32,0.06]
[1753741151761,0.03,184.35,184.32,21.14272393]
[1753741152101,0.03,184.35,184.33,42.71803996]
[1753741152102,0.72,184.34,184.33,42.71803996]
[1753741152278,0.72,184.34,184.33,55.20468397]
[1753741152679,0.72,184.34,184.33,38.42]
[1753741152975,0.72,184.34,184.33,55.20468397]
[1753741153565,9.03259878,184.34,184.32,0.06]
[1753741153794,0.72,184.34,184.33,38.42]
[1753741153970,4.32803996,184.35,184.33,60.04522921]
[1753741153971,0.03,184.35,184.33,60.04522921]
[1753741154289,0.03,184.35,184.34,21.08272393]
[1753741154672,0.03,184.35,184.34,21.60272393]
[1753741155367,0.03,184.35,184.34,21.88704707]
[1753741155769,0.03,184.35,184.34,27.31180566]
[1753741158290,0.03,184.39,184.38,42.78468397]
[1753741158463,0.03,184.39,184.38,85.78704707]
[1753741158671,0.03,184.39,184.38,92.67494707]
[1753741158888,0.03,184.39,184.38,95.36942534]
[1753741159231,0.03,184.4,184.39,24.06152534]
[1753741159574,0.03,184.4,184.39,24.58152534]
[1753741160191,0.03,184.4,184.39,29.48481293]
[1753741160566,0.03,184.4,184.39,55.48481293]
[1753741160792,0.7,184.4,184.39,62.1972022]
[1753741160971,4.04702312,184.4,184.39,62.1972022]
[1753741161170,0.03,184.4,184.39,62.73953095]
[1753741161368,0.7,184.4,184.39,62.1972022]
[1753741161574,4.71702312,184.4,184.39,62.73953095]
[1753741162188,0.7,184.4,184.39,62.73953095]
[1753741162695,0.7,184.4,184.38,6.99251823]
[1753741162872,4.71644534,184.4,184.36,16.78468397]
[1753741163075,4.71644534,184.4,184.37,45.41251823]
[1753741163076,0.67,184.39,184.37,45.41251823]
[1753741163289,0.67,184.38,184.37,45.41251823]
[1753741164496,0.67,184.38,184.37,38.42]
[1753741164797,4.68900301,184.38,184.37,38.42]
[1753741165205,4.01900301,184.38,184.37,38.42]
[1753741165407,0.67,184.38,184.37,38.42]
[1753741166072,0.67,184.38,184.37,45.41251823]
[1753741168179,0.03,184.4,184.39,26.0]
[1753741168374,0.03,184.4,184.39,89.00385409]
[1753741168592,0.03,184.4,184.39,7.53484698]
[1753741168808,0.7,184.4,184.39,45.39251823]
[1753741168979,0.03,184.4,184.39,45.39251823]
[1753741171742,0.7,184.4,184.36,0.54241701]
[1753741171950,0.7,184.4,184.35,6.99251823]
[1753741171951,7.69251823,184.4,184.35,6.99251823]
[1753741172236,4.7036453,184.39,184.36,38.38]
[1753741172405,0.67,184.38,184.36,38.38]
[1753741172606,0.67,184.38,184.32,0.06]
[1753741172823,6.99251823,184.36,184.32,0.06]
[1753741173136,0.67,184.35,184.33,38.38]
[1753741173346,0.67,184.35,184.34,6.99251823]
[1753741173512,0.67,184.34,184.33,38.38]
[1753741173713,4.70432823,184.34,184.33,38.38]
[1753741174210,0.67,184.34,184.33,38.38]
[1753741174911,4.70420056,184.34,184.33,38.38]
[1753741176934,17.12147738,184.34,184.33,38.4]
[1753741177111,17.12147738,184.34,184.32,0.06]
[1753741177112,8.1568,184.33,184.32,0.06]
[1753741177311,5.42534722,184.32,184.29,38.4]
[1753741177512,6.99251823,184.3,184.29,38.4]
[1753741177821,7.66251823,184.3,184.29,38.4]
[1753741178847,11.6914094,184.3,184.29,38.4]
[1753741179249,7.66251823,184.3,184.29,38.4]
[1753741179424,13.0884542,184.3,184.29,38.4]
[1753741180448,17.11348219,184.3,184.29,38.4]
[1753741180864,17.11348219,184.3,184.28,0.06]
[1753741181032,11.68754622,184.29,184.28,0.06]
[1753741181455,13.08874862,184.29,184.28,0.06]
[1753741182253,17.11166934,184.29,184.28,0.06]
[1753741184335,26.0,184.27,184.26,0.06]
[1753741184658,38.67443895,184.27,184.26,0.06]
[1753741185031,39.34443895,184.27,184.26,0.06]
[1753741185657,39.33569205,184.27,184.26,0.06]
[1753741186452,44.76251139,184.27,184.26,0.06]
[1753741189471,45.04683453,184.27,184.26,0.06]
[1753741190762,42.35846752,184.27,184.26,0.06]
[1753741192160,42.35846752,184.27,184.24,0.06]
[1753741192364,4.58847436,184.25,184.24,0.06]
[1753741192567,8.60264818,184.25,184.24,0.06]
[1753741192738,9.26264818,184.25,184.24,0.06]
[1753741192945,13.5667994,184.25,184.24,1e-08]
[1753741193269,31.71291007,184.21,184.2,0.06]
[1753741193569,92.60456786,184.21,184.16,0.06]
[1753741193741,30.30415122,184.17,184.16,0.06]
[1753741193940,34.31832504,184.17,184.16,0.06]
[1753741194169,34.97832504,184.17,184.16,0.06]
[1753741194750,11.69508901,184.17,184.16,0.06]
[1753741195364,17.12485498,184.17,184.16,0.06]
[1753741197443,17.40917812,184.17,184.16,0.06]
[1753741197648,26.0,184.14,184.13,1e-08]
[1753741197862,17.06900711,184.13,184.11,0.06]
[1753741198067,177.76409612,184.13,184.12,1e-08]
[1753741198283,177.10409612,184.13,184.12,1e-08]
[1753741198578,26.0,184.1,184.09,0.06]
[1753741198744,26.0,184.1,184.05,0.06]
[1753741198745,0.28432314,184.09,184.05,0.06]
[1753741198950,7.02091519,184.06,184.05,0.06]
[1753741199151,11.69508901,184.06,184.05,0.06]
[1753741199574,17.12809998,184.06,184.05,0.06]
[1753741199763,17.3673703,184.06,184.05,0.06]
[1753741200166,16.42304716,184.06,184.05,0.06]
[1753741200652,3.969121,184.06,184.05,0.06]
[1753741200853,7.02091519,184.06,184.05,0.06]
[1753741201061,11.65003619,184.06,184.05,0.06]
[1753741201279,54.43472016,184.06,184.05,1e-08]
[1753741201458,59.86773113,184.06,184.05,1e-08]
[1753741201661,3.969121,184.06,184.05,0.58000001]
[1753741201860,7.02091519,184.06,184.05,1e-08]
[1753741202061,10.99003619,184.06,184.05,1e-08]
[1753741202761,37.65003619,184.06,184.05,1e-08]
[1753741203486,43.08304716,184.06,184.05,1e-08]
[1753741204168,72.52773113,184.06,184.05,1e-08]
[1753741204380,40.04183038,184.03,184.02,0.06]
[1753741204682,37.27435933,184.03,184.02,0.06]
[1753741204881,37.93435933,184.03,184.02,0.06]
[1753741205465,43.36825597,184.03,184.02,0.06]
[1753741205659,50.38917116,184.03,184.01,0.1]
[1753741205861,0.28432314,183.98,183.88,0.58]
[1753741206090,7.02091519,183.92,183.88,0.58]
[1753741206261,26.0,183.99,183.9,7.02091519]
[1753741206593,3.9461918,183.98,183.94,7.02091519]
[1753741206800,3.9461918,183.98,183.91,0.58]
[1753741206801,3.9461918,183.97,183.92,7.02091519]
[1753741206959,3.9461918,183.97,183.88,26.28432314]
[1753741206960,7.02091519,183.93,183.88,7.02091519]
[1753741207159,26.0,184.0,183.87,38.68]
[1753741207160,7.02091519,183.92,183.89,0.58]
[1753741207667,7.02091519,183.92,183.9,0.58]
[1753741207987,7.02091519,183.94,183.91,0.58]
[1753741208212,3.94331099,183.93,183.91,0.58]
[1753741208525,3.94331099,183.92,183.88,16.78468397]
[1753741208704,7.02091519,183.95,183.9,7.02091519]
[1753741208888,3.94011821,183.94,183.9,7.02091519]
[1753741209092,7.02091519,183.96,183.91,0.58]
[1753741209295,3.94110366,183.95,183.92,7.02091519]
[1753741209628,10.96201885,183.94,183.9,0.58]
[1753741209926,10.95996932,183.93,183.9,0.58]
[1753741210126,7.02091519,183.93,183.9,0.58]
[1753741210991,7.02091519,183.94,183.9,0.58]
[1753741211304,3.9378055,183.93,183.9,0.58]
[1753741211514,3.9378055,183.92,183.9,0.58]
[1753741211693,3.9378055,183.91,183.9,0.58]
[1753741212631,3.93502713,183.91,183.9,0.58]
[1753741212998,3.93502713,183.91,183.9,7.60091519]
[1753741213518,33.02091519,183.98,183.9,8.14468898]
[1753741213694,3.93481041,183.97,183.93,7.02091519]
[1753741213898,3.93481041,183.96,183.93,7.60091519]
[1753741214220,3.93481041,183.95,183.93,0.58]
[1753741214428,3.93481041,183.94,183.93,0.58]
[1753741214727,3.93481041,183.94,183.93,45.68091519]
[1753741215026,26.66,184.03,183.94,1.5952]
[1753741215227,10.95526337,184.02,183.97,7.02091519]
[1753741215406,3.93434818,184.01,183.97,7.60091519]
[1753741215624,3.93434818,184.0,183.97,0.58]
[1753741215820,26.66,184.03,183.98,0.58]
[1753741215821,3.93434818,183.99,183.98,0.58]
[1753741216135,3.93434818,183.99,183.98,7.60091519]
[1753741216515,3.93434818,183.99,183.98,24.38559916]
[1753741216819,3.93434818,183.99,183.98,7.60091519]
[1753741217022,3.93434818,183.99,183.98,45.72091519]
[1753741218305,3.93434818,183.99,183.98,38.7]
[1753741218923,3.93434818,183.99,183.98,45.72091519]
[1753741219112,7.02091519,184.02,183.98,38.7]
[1753741219316,7.70091519,184.01,183.98,38.7]
[1753741219537,0.68,184.0,183.98,38.7]
[1753741219911,7.02091519,184.01,183.98,38.7]
[1753741220134,12.45543161,184.01,183.98,38.7]
[1753741220308,0.68,184.0,183.98,38.7]
[1753741220825,7.70091519,184.0,183.98,38.7]
[1753741221327,7.70091519,183.99,183.9,8.66261519]
[1753741221528,7.02091519,183.94,183.9,38.76]
[1753741221724,26.68,183.98,183.9,45.78091519]
[1753741221725,0.68,183.96,183.9,45.78091519]
[1753741221911,7.02091519,183.94,183.9,38.76]
[1753741222112,7.70091519,183.94,183.9,38.76]
[1753741222312,7.02091519,183.91,183.9,0.06]
[1753741222709,7.70091519,183.91,183.9,0.06]
[1753741223532,7.02091519,183.92,183.9,0.06]
[1753741223732,3.95197404,183.91,183.9,0.06]
[1753741223906,3.95197404,183.91,183.9,8.20468898]
[1753741223907,3.95251053,183.91,183.9,8.20468898]
[1753741224238,3.37251053,183.91,183.9,14.34288898]
[1753741225314,3.37251053,183.91,183.9,36.56531085]
[1753741226864,3.37251053,183.91,183.9,13.21911519]
[1753741227224,3.37251053,183.91,183.9,52.09911519]
[1753741228813,3.37251053,183.91,183.9,57.53685309]
[1753741229013,3.37251053,183.91,183.9,74.32153706]
[1753741229349,7.02091519,183.99,183.9,74.32153706]
[1753741229350,0.68,184.0,183.93,26.0]
[1753741229640,0.68,184.0,183.97,7.02091519]
[1753741229815,0.68,184.0,183.93,26.54368509]
[1753741229816,0.68,184.0,183.98,38.86]
[1753741231222,0.68,183.99,183.98,38.86]
[1753741231951,0.68,183.99,183.92,0.54371465]
[1753741231952,7.70091519,183.99,183.92,0.54371465]
[1753741232238,7.70091519,183.99,183.89,1.7091]
[1753741232239,7.02091519,183.96,183.89,1.7091]
[1753741232446,0.68,183.95,183.9,7.08091519]
[1753741232621,0.68,183.94,183.9,7.08091519]
[1753741232817,7.02091519,183.95,183.9,0.06]
[1753741232818,7.70091519,183.93,183.9,0.06]
[1753741233223,0.68,183.92,183.9,0.06]
[1753741233642,0.68,183.91,183.9,0.06]
[1753741236126,4.66273942,183.91,183.9,0.06]
[1753741236332,11.68365461,183.91,183.89,0.06]
[1753741236554,11.68365461,183.9,183.89,0.06]
[1753741236846,20.707891,183.9,183.89,0.06]
[1753741237549,24.69780745,183.9,183.89,0.06]
[1753741238244,12.23915436,183.9,183.89,0.06]
[1753741238454,7.56923791,183.9,183.89,0.06]
[1753741238624,4.66273942,183.9,183.89,0.06]
[1753741238823,13.68697581,183.9,183.89,0.06]
[1753741239037,8.24923791,183.9,183.89,0.06]
[1753741239842,4.66273942,183.9,183.89,0.06]
[1753741240230,8.24923791,183.9,183.89,0.06]
[1753741240429,8.25933357,183.9,183.89,0.06]
[1753741241138,4.66273942,183.9,183.89,0.06]
[1753741241446,13.69707147,183.9,183.89,0.06]
[1753741241637,20.71798666,183.9,183.89,0.06]
[1753741242530,25.21372935,183.9,183.89,0.06]
[1753741243336,72.36769527,183.9,183.86,0.06]
[1753741243541,72.36769527,183.9,183.77,7.02091519]
[1753741243542,33.02091519,183.87,183.77,7.02091519]
[1753741243741,7.02091519,183.82,183.77,45.76091519]
[1753741243943,4.66273942,183.81,183.77,45.76091519]
[1753741244145,3.98273942,183.8,183.79,7.02091519]
[1753741244853,3.59904037,183.83,183.79,7.02091519]
[1753741245026,3.99902531,183.82,183.78,22.51016222]
[1753741245227,3.59904037,183.86,183.82,0.28432314]
[1753741245432,3.59797845,183.9,183.85,7.02091519]
[1753741245652,3.99871409,183.89,183.88,7.02091519]
[1753741245844,4.67871409,183.89,183.87,7.02091519]
[1753741246040,4.67871409,183.88,183.85,7.02091519]
[1753741246255,3.99871409,183.87,183.85,7.02091519]
[1753741246463,3.99871409,183.87,183.85,45.80091519]
[1753741246752,3.99871409,183.87,183.86,7.02091519]
[1753741247330,3.99871409,183.89,183.86,7.02091519]
[1753741247640,3.99871409,183.88,183.83,8.58308085]
[1753741247844,4.64871409,183.87,183.84,38.78]
[1753741248033,34.0962176,183.91,183.84,38.78]
[1753741248034,3.99871409,183.86,183.84,38.78]
[1753741248238,26.0,183.89,183.84,38.78]
[1753741248564,0.65,183.85,183.84,38.78]
[1753741248931,3.99854794,183.85,183.84,38.78]
[1753741249135,3.99854794,183.85,183.84,45.80091519]
[1753741249759,3.99854794,183.85,183.84,38.78]
[1753741249944,7.59652639,183.86,183.84,38.78]
[1753741250132,4.64854794,183.85,183.84,38.78]
[1753741250962,10.08776469,183.85,183.84,38.78]
[1753741251670,10.08776469,183.85,183.72,13.6072502]
[1753741251671,34.3019915,183.85,183.76,7.02091519]
[1753741251839,7.02091519,183.81,183.77,38.74]
[1753741252034,0.65,183.8,183.77,38.74]
[1753741252234,7.02091519,183.81,183.77,38.74]
[1753741252455,0.65,183.8,183.77,38.74]
[1753741252774,0.65,183.79,183.77,38.74]
[1753741253360,0.65,183.78,183.77,38.74]
[1753741253956,7.02091519,183.8,183.77,38.74]
[1753741254354,0.65,183.79,183.77,38.74]
[1753741255049,0.65,183.78,183.77,38.74]
[1753741256656,0.65,183.78,183.77,38.74]
[1753741257551,6.09128849,183.78,183.77,38.74]
[1753741257944,0.65,183.78,183.77,38.74]
[1753741258150,0.65,183.78,183.77,38.7]
[1753741258349,6.09131656,183.78,183.77,38.7]
[1753741259843,13.11223175,183.78,183.74,0.28432314]
[1753741260153,7.67091519,183.77,183.75,38.68]
[1753741260356,0.65,183.76,183.75,38.68]
[1753741260863,7.67091519,183.76,183.75,38.68]
[1753741261246,13.1127959,183.76,183.75,38.68]
[1753741261642,13.1127959,183.76,183.73,38.74]
[1753741261877,7.02091519,183.74,183.73,38.74]
[1753741262076,0.65,183.74,183.73,38.74]
[1753741262242,0.65,183.74,183.73,0.06]
[1753741263352,7.67091519,183.74,183.73,0.06]
[1753741263548,26.0,183.72,183.71,0.1]
[1753741263760,33.02091519,183.72,183.71,0.1]
[1753741264165,33.67091519,183.72,183.71,0.1]
[1753741265548,39.11398072,183.72,183.71,0.1]
[1753741266246,43.08511698,183.72,183.71,0.1]
[1753741267473,60.65795484,183.72,183.64,38.66]
[1753741267653,7.02091519,183.66,183.64,38.66]
[1753741268163,0.65,183.66,183.64,38.66]
[1753741268569,7.67091519,183.68,183.64,45.68091519]
[1753741268870,0.65,183.67,183.64,45.68091519]
[1753741269563,6.09481229,183.67,183.64,45.68091519]
[1753741269874,149.65,183.71,183.65,0.28432314]
[1753741270069,149.0,183.71,183.69,7.02091519]
[1753741270368,154.44336414,183.71,183.68,38.64]
[1753741270549,154.44336414,183.71,183.69,7.02091519]
[1753741271177,0.65,183.76,183.7,7.48523833]
[1753741271351,157.61841519,183.77,183.7,7.48523833]
[1753741271352,3.95935287,183.75,183.74,7.02091519]
[1753741271547,149.0,183.77,183.74,7.02091519]
[1753741271749,149.0,183.77,183.75,7.02091519]
[1753741272679,5.44076855,183.8,183.76,7.02091519]
[1753741272877,3.96071779,183.79,183.76,7.02091519]
[1753741273076,4.61071779,183.79,183.76,45.64091519]
[1753741273259,0.65,183.79,183.76,45.64091519]
[1753741273578,3.96197205,183.78,183.76,45.64091519]
[1753741273797,6.09116143,183.79,183.76,45.64091519]
[1753741274555,0.65,183.78,183.76,45.64091519]
[1753741274967,5.44116143,183.79,183.76,45.64091519]
[1753741275157,186.63409789,183.78,183.72,7.02091519]
[1753741275369,4.6131827,183.77,183.73,38.6]
[1753741275573,3.9631827,183.76,183.73,38.6]
[1753741275778,6.09217687,183.75,183.71,7.02091519]
[1753741275983,3.9631827,183.76,183.71,7.02091519]
[1753741275984,3.96432023,183.74,183.72,38.62]
[1753741276166,5.44195661,183.76,183.72,45.64091519]
[1753741276373,3.96649312,183.75,183.72,45.64091519]
[1753741277382,4.68663112,183.74,183.72,38.62]
[1753741277590,0.72,183.74,183.72,38.62]
[1753741277886,10.13090133,183.73,183.72,38.62]
[1753741278190,4.68813205,183.73,183.72,38.62]
[1753741278366,3.96813205,183.73,183.72,38.62]
[1753741279290,3.96889302,183.73,183.72,38.62]
[1753741279787,3.96889302,183.73,183.72,45.92523833]
[1753741280290,3.96889302,183.73,183.72,46.10523833]
[1753741280592,149.0,183.74,183.72,46.10523833]
[1753741280891,149.0,183.74,183.73,7.30523833]
[1753741281095,149.0,183.8,183.74,0.28432314]
[1753741281389,18.05242847,183.86,183.76,17.06900711]
[1753741281390,3.97162419,183.79,183.76,17.06900711]
[1753741281576,0.03,183.84,183.78,16.78468397]
[1753741281792,0.03,183.8,183.79,38.66]
[1753741282392,0.03,183.84,183.79,38.66]
[1753741282393,0.03,183.84,183.79,56.27310635]
[1753741282702,0.03,183.84,183.83,30.4348223]
[1753741282999,0.03,183.84,183.83,69.0948223]
[1753741284694,0.03,183.84,183.83,45.96523833]
[1753741284871,0.75,183.84,183.83,7.30523833]
[1753741285085,12.20928479,183.88,183.83,45.94523833]
[1753741285615,3.5813951,183.87,183.83,38.64]
[1753741285778,3.5813951,183.87,183.84,7.02091519]
[1753741286204,8.7697647,183.88,183.84,7.02091519]
[1753741286811,15.79067989,183.88,183.83,45.66091519]
[1753741286983,4.3013951,183.87,183.83,45.66091519]
[1753741287412,0.72,183.86,183.83,45.66091519]
[1753741287731,0.72,183.86,183.84,7.02091519]
[1753741288029,3.5813951,183.87,183.84,7.02091519]
[1753741288191,4.3013951,183.88,183.85,7.02091519]
[1753741288504,0.72,183.87,183.86,38.62]
[1753741290722,4.30252408,183.87,183.86,38.62]
[1753741292114,9.74114919,183.87,183.86,38.62]
[1753741292318,6.15862511,183.87,183.86,38.62]
[1753741293027,184.79853626,183.89,183.86,45.64091519]
[1753741293028,177.77762107,183.89,183.86,45.64091519]
[1753741293199,175.0,183.89,183.87,7.02091519]
[1753741293392,175.0,183.89,183.86,45.64091519]
[1753741293714,3.98624948,183.88,183.86,45.64091519]
[1753741294589,3.98624948,183.88,183.87,7.02091519]
[1753741294796,3.98624948,183.88,183.87,7.98523833]
[1753741294994,0.03,183.91,183.88,0.28432314]
[1753741295296,0.03,183.91,183.89,45.60091519]
[1753741295711,0.03,183.91,183.9,7.02091519]
[1753741298501,0.03,183.91,183.9,7.98523833]
[1753741299126,0.03,183.91,183.86,7.178]
[1753741299299,0.03,183.91,183.89,7.02091519]
[1753741299498,0.03,183.91,183.9,38.56]
[1753741300728,4.01647648,183.91,183.9,38.56]
[1753741300927,4.01647648,183.91,183.9,45.58091519]
[1753741301307,0.03,183.91,183.9,38.56]
[1753741301809,4.73647648,183.91,183.9,38.56]
[1753741302112,4.01647648,183.91,183.9,45.58091519]
[1753741302307,0.03,183.91,183.9,38.56]
[1753741302717,0.03,183.91,183.9,45.86523833]
[1753741303301,0.03,183.91,183.9,38.84432314]
[1753741303524,0.03,183.91,183.9,45.86523833]
[1753741303934,0.75,183.91,183.9,38.56]
[1753741304241,11.74774678,183.91,183.9,38.56]
[1753741304542,17.185189,183.91,183.9,38.56]
[1753741304829,17.185189,183.91,183.86,0.06]
[1753741305138,160.71774678,183.9,183.87,38.56]
[1753741305301,0.72,183.89,183.87,38.56]
[1753741305504,0.72,183.88,183.87,38.56]
[1753741305717,11.7158554,183.88,183.86,0.06]
[1753741305922,10.9957385,183.87,183.86,0.06]
[1753741306143,11.7157385,183.87,183.86,0.06]
[1753741306519,17.15436361,183.87,183.86,0.06]
[1753741306733,9.41344842,183.87,183.86,0.06]
[1753741307239,17.15436361,183.87,183.86,0.06]
[1753741308829,43.15436361,183.87,183.86,0.06]
[1753741312446,35.41344842,183.87,183.86,0.06]
[1753741312622,42.43436361,183.87,183.86,0.06]
[1753741312817,43.15436361,183.87,183.86,0.06]
[1753741313345,43.15436361,183.87,183.86,1e-08]
[1753741313639,76.080709,183.87,183.86,1e-08]
[1753741313842,76.080709,183.87,183.76,13.31021519]
[1753741313843,7.02091519,183.81,183.78,38.56]
[1753741314144,7.74091519,183.81,183.78,38.56]
[1753741315651,13.18150687,183.81,183.78,38.56]
[1753741316147,7.02091519,183.79,183.78,38.56]
[1753741316460,7.74091519,183.79,183.78,38.56]
[1753741317552,12.46190762,183.79,183.78,38.56]
[1753741318147,16.45098811,183.79,183.78,38.56]
[1753741319126,17.17098811,183.79,183.78,38.56]
[1753741319322,16.45098811,183.79,183.75,38.56]
[1753741319552,5.44099243,183.79,183.75,39.23]
[1753741320043,3.98862973,183.78,183.75,39.23]
[1753741320238,3.98862973,183.78,183.76,0.28432314]
[1753741320445,149.0,183.8,183.78,0.28432314]
[1753741320642,154.43958296,183.84,183.8,0.28432314]
[1753741320836,3.98989433,183.83,183.81,7.69091519]
[1753741321145,3.98989433,183.83,183.81,7.02091519]
[1753741322654,9.42972369,183.83,183.81,7.02091519]
[1753741322846,3.98989433,183.82,183.81,7.02091519]
[1753741323323,3.98989433,183.83,183.81,7.02091519]
[1753741323524,3.98989433,183.82,183.8,0.28432314]
[1753741323747,3.98989433,183.81,183.8,0.28432314]
[1753741323966,3.98989433,183.81,183.8,0.95432314]
[1753741324254,3.98989433,183.83,183.8,0.95432314]
[1753741324630,3.98989433,183.83,183.81,7.02091519]
[1753741325045,9.42972394,183.83,183.81,7.02091519]
[1753741325247,3.98989433,183.82,183.81,7.02091519]
[1753741325555,3.99864786,183.82,183.81,7.02091519]
[1753741325747,5.44040041,183.81,183.8,0.06]
[1753741325957,20.77652991,183.81,183.8,0.06]
[1753741326134,46.77652991,183.81,183.8,0.06]
[1753741329352,43.17996346,183.81,183.8,0.06]
[1753741329856,42.45996346,183.81,183.8,0.06]
[1753741330737,43.17996346,183.81,183.8,0.06]
[1753741330937,42.45996346,183.81,183.8,0.06]
[1753741331746,38.4613156,183.81,183.8,0.06]
[1753741332138,43.17758692,183.81,183.8,0.06]
[1753741333950,36.15667173,183.81,183.8,0.06]
[1753741334160,43.17758692,183.81,183.8,0.06]
[1753741335046,27.78904302,183.81,183.8,1e-08]
[1753741335249,26.0,183.78,183.67,0.73]
[1753741335561,7.02091519,183.72,183.67,7.75091519]
[1753741335866,7.02091519,183.72,183.67,0.06]
[1753741335867,7.02091519,183.7,183.67,0.06]
[1753741336171,7.02091519,183.68,183.67,0.06]
[1753741336866,28.74773792,183.68,183.67,0.06]
[1753741337062,7.02091519,183.69,183.67,0.06]
[1753741337859,12.46502234,183.69,183.67,0.06]
[1753741340545,7.69091519,183.68,183.67,0.06]
[1753741340946,33.69091519,183.68,183.67,0.06]
[1753741342457,39.13516606,183.68,183.67,0.06]
[1753741344271,38.46516606,183.68,183.67,0.06]
[1753741344866,39.13516606,183.68,183.67,0.06]
[1753741347767,2.72647943,183.69,183.67,0.06]
[1753741347943,18.0821593,183.75,183.67,0.06]
[1753741347944,3.58076647,183.74,183.68,7.02091519]
[1753741348144,2.78143884,183.74,183.71,7.02091519]
[1753741348348,10.60606275,183.8,183.74,0.28432314]
[1753741348349,5.44099243,183.79,183.74,0.28432314]
[1753741348560,5.44099243,183.79,183.77,7.02091519]
[1753741348784,31.4406964,183.8,183.75,7.02091519]
[1753741349157,7.69091519,183.79,183.73,7.02091519]
[1753741349465,7.02091519,183.76,183.7,0.96432314]
[1753741349670,7.02091519,183.74,183.7,0.28432314]
[1753741349855,7.69091519,183.75,183.7,7.02091519]
[1753741350254,7.69091519,183.74,183.69,38.58]
[1753741350456,149.0,183.79,183.69,38.58]
[1753741350457,26.0,183.73,183.7,7.02091519]
[1753741350676,3.98362836,183.72,183.7,7.70091519]
[1753741351071,31.44306392,183.73,183.7,7.70091519]
[1753741351381,3.98371763,183.72,183.7,7.70091519]
[1753741352256,3.98371763,183.72,183.69,38.58]
[1753741352562,3.98371763,183.72,183.69,46.28091519]
[1753741352767,3.98371763,183.72,183.7,7.02091519]
[1753741353156,9.42690729,183.72,183.7,7.02091519]
[1753741353355,3.98371763,183.71,183.7,7.02091519]
[1753741353961,11.67463282,183.71,183.67,0.06]
[1753741354283,3.98371763,183.7,183.68,7.70091519]
[1753741354500,5.44318966,183.72,183.68,7.70091519]
[1753741354661,3.9858594,183.71,183.68,0.68]
[1753741354861,3.9858594,183.71,183.68,7.70091519]
[1753741355257,9.42942523,183.71,183.68,7.70091519]
[1753741355456,3.9858594,183.7,183.68,7.70091519]
[1753741356167,3.9858594,183.7,183.69,7.98523833]
[1753741356365,26.0,183.73,183.69,7.70091519]
[1753741356568,3.98762713,183.72,183.7,7.70091519]
[1753741357387,3.98762713,183.72,183.7,7.02091519]
[1753741358479,5.44135272,183.78,183.72,17.06900711]
[1753741358687,3.99097029,183.77,183.74,0.28432314]
[1753741358862,3.59014463,183.79,183.77,0.28432314]
[1753741359065,35.0303814,183.83,183.78,7.02091519]
[1753741359283,8.25222561,183.82,183.78,45.60091519]
[1753741359458,4.66165272,183.81,183.78,38.58]
[1753741359773,3.99165272,183.8,183.78,38.58]
[1753741360076,4.66165272,183.8,183.78,38.58]
[1753741360258,15.79821538,183.82,183.78,38.58]
[1753741360459,4.66198841,183.81,183.78,38.58]
[1753741360668,3.99198841,183.8,183.78,38.58]
[1753741361274,5.44099243,183.79,183.78,38.58]
[1753741361456,17.12397959,183.79,183.75,38.58]
[1753741361667,7.02091519,183.77,183.75,38.58]
[1753741362184,7.69091519,183.77,183.75,38.58]
[1753741363971,5.44188071,183.76,183.75,38.58]
[1753741364791,5.44099243,183.79,183.75,46.28091519]
[1753741364993,149.0,183.81,183.76,7.70091519]
[1753741365293,154.44066968,183.81,183.77,7.02091519]
[1753741365469,0.67,183.8,183.76,7.02091519]